Cogmind - Beta 10.2 @@@ ROGUE MODE // 2021.06.22 @ 17:13:22 Player: OccultOnion Result: Destroyed by S-27 Virus with Autogun Performance ------------- Evolutions (6) 3000 Regions Visited (9) 1800 Robots Destroyed (77) 385 Value Destroyed (3459) 3459 Prototype IDs (3) 60 Alien Tech Used (0) 0 Bonus (0) 0 TOTAL SCORE: 8704 Bonus ------- None Cogmind --------- Core Integrity 0/1150 Matter 300/300 Energy 100/100 System Corruption 11% Temperature Cool (0) Movement Core (50) Location -4/Factory Parts ------- > --- POWER (2) -------- (None) > --- PROPULSION (6) --- (None) > --- UTILITY (8) ------ Advanced Visual Processing Unit Improved Salvage Targeting Computer Improved Targeting Computer Improved Target Analyzer Improved Target Analyzer Improved Target Analyzer > --- WEAPON (3) ------- (None) > --- INVENTORY (4) ---- Advanced Heat Sink Improved Core Analyzer Peak State ------------ > --- POWER ------------ Light Nuclear Core Micro Fission Core > --- PROPULSION ------- Myomer Leg Gravmag Array Antigrav System Antigrav System Antigrav System > --- UTILITY ---------- Advanced Heat Sink Advanced Heat Sink Improved Salvage Targeting Computer Improved Targeting Computer Improved Target Analyzer Improved Target Analyzer Advanced Armor Integrity Analyzer Advanced Thermal Shield > --- WEAPON ----------- Tesla Rifle Autogun > --- INVENTORY -------- Flexi-carbon Leg Flexi-carbon Leg Improved Target Analyzer [Rating: 93] Favorites ----------- Power Deuterium Engine Engine Deuterium Engine Power Core Micro Nuclear Core Reactor Light Antimatter Reactor Propulsion Carbon-fiber Leg Treads Improved Treads Leg Carbon-fiber Leg Wheel Compact Wheel Hover Unit Gravmag Array Flight Unit VTOL Module Utility Medium Storage Unit Device Improved Cryofiber Web Storage Medium Storage Unit Processor Advanced Armor Integrity Analyzer Hackware Hacking Suite Protection Layered Medium Armor Plating Weapon Heavy Flail Energy Gun Improved EM Shotgun Energy Cannon Heavy Ion Cannon Ballistic Gun Hypervelocity Coil Gun Ballistic Cannon Flak Cannon Launcher Proton Missile Launcher Impact Weapon Heavy Flail Slashing Weapon Chainsword Build | -11 -10 -9 -8 -7 -6 -5 -5 -5 -4 ------- Run | Scr Mat Mat Mat Fac Fac Fac Upp Upp Fac Slots Evolved 12 | . . 2 2 2 2 2 . . 2 Power 1 | . . . . . 1 . . . . Propulsion 4 | . . 1 1 . . 2 . . . Utility 6 | . . 1 1 1 1 . . . 2 Weapon 1 | . . . . 1 . . . . . Parts Attached 132 | 1 3 9 8 13 9 9 20 2 58 Power 11 | . 1 . 1 1 2 1 . . 5 Engine 3 | . 1 . . 1 1 . . . . Core 6 | . . . 1 . 1 1 . . 3 Reactor 2 | . . . . . . . . . 2 Propulsion 43 | . 1 3 3 5 1 5 5 . 20 Treads 5 | . . 2 1 . . . 2 . . Leg 20 | . . . 2 3 1 4 3 . 7 Wheel 6 | . 1 1 . . . . . . 4 Hover 10 | . . . . . . 1 . . 9 Flight 2 | . . . . 2 . . . . . Utility 40 | 1 1 3 1 3 4 2 8 . 17 Device 21 | . . 2 1 2 2 1 5 . 8 Storage 5 | 1 1 1 . . 1 1 . . . Processor 8 | . . . . 1 . . 1 . 6 Hackware 1 | . . . . . 1 . . . . Protection 5 | . . . . . . . 2 . 3 Artifact . | . . . . . . . . . . Weapon 38 | . . 3 3 4 2 1 7 2 16 Energy Gun 15 | . . 3 2 3 1 . 2 . 4 Energy Cannon 8 | . . . . . 1 . 2 . 5 Ballistic Gun 8 | . . . . . . 1 1 . 6 Ballistic Cannon 1 | . . . 1 . . . . . . Launcher 1 | . . . . . . . . 1 . Special Weapon . | . . . . . . . . . . Impact Weapon 4 | . . . . 1 . . 2 . 1 Slashing Weapon 1 | . . . . . . . . 1 . Piercing Weapon . | . . . . . . . . . . Special Melee Weapon . | . . . . . . . . . . Unidentified Prototypes 3 | . . . 1 . . 1 . . 1 Parts Lost 102 | . 2 8 1 7 6 6 24 6 42 Power 12 | . 1 1 1 . 1 1 2 . 5 Propulsion 34 | . 1 4 . 3 1 2 10 . 13 Utility 23 | . . . . 2 2 2 5 3 9 Weapon 33 | . . 3 . 2 2 1 7 3 15 Highest Loss Streak 15 | . 1 4 1 5 5 5 7 6 15 Average Slot Usage (%) 80 | . 96 81 89 95 94 93 74 33 62 Engine 3 | . 13 6 . 7 10 5 . . . Core 2 | . . . 8 . . 4 2 . 1 Treads 4 | . . 7 18 7 1 . 3 . . Leg 14 | . 20 1 9 16 24 29 17 . 3 Wheel 1 | . 5 13 . . . . . . 1 Hover 1 | . . . . . . . . . 8 Device 10 | . . 8 9 8 14 11 13 8 9 Storage 12 | . 28 24 27 23 17 15 5 1 . Processor 5 | . . . . 5 . . 2 5 17 Hackware 2 | . . . . . 5 5 5 2 . Protection 2 | . . . . . . . 3 5 5 Energy Gun 3 | . . 9 9 7 6 3 . . 1 Energy Cannon 2 | . . . . . 2 5 4 . 4 Ballistic Gun 3 | . 28 10 . . . 1 4 . 1 Ballistic Cannon 2 | . . . 7 7 1 . . . . Impact Weapon 3 | . . . . 4 6 5 5 5 2 Naked Turns . | . . . . . . . . . . Heaviest Build 55 | 14 18 22 31 40 49 45 42 6 55 Greatest Support 94 | 20 20 40 43 43 58 94 84 3 80 Greatest Overweight (x) 11 | . 1 1 1 11 1 3 6 1 4 Average Overweight (x) . | . . . . . . . . 1 . Largest Inventory Capacity 10 | 8 10 10 10 10 10 10 8 8 4 Average Capacity 7 | 7 8 10 10 10 10 9 8 5 4 Most Carried 10 | 6 10 10 10 10 10 10 8 8 4 Average Carried 6 | 5 7 9 7 9 8 9 6 4 3 Final Capacity 10 | 8 10 10 10 10 10 8 8 4 4 Final Carried 10 | 6 10 7 10 9 10 8 8 4 2 Class Distribution -------------------- 51% | Mutant 46% | Scavenger-Mutant Dominant Class ---------------- Mutant | -10/Materials Mutant | -9/Materials Scavenger-Mutant | -8/Materials Mutant | -7/Factory Scavenger-Mutant | -6/Factory Scavenger-Mutant | -5/Factory Scavenger-Mutant | -5/Upper Caves Mutant | -5/Upper Caves Scavenger-Mutant | -4/Factory Resources | -11 -10 -9 -8 -7 -6 -5 -5 -5 -4 ----------- Run | Scr Mat Mat Mat Fac Fac Fac Upp Upp Fac Matter Collected 2404 | 214 148 103 248 367 104 64 427 . 729 Remotely . | . . . . . . . . . . Salvage Created 4134 | 83 234 407 406 382 165 318 919 . 1220 Parts 177 | 5 9 23 17 22 10 8 29 . 54 Haulers Intercepted 1 | . . . 1 . . . . . . Recyclers Shooed 2 | . . 1 . . . . . . 1 Parts Field Recycled . | . . . . . . . . . . Retrieved Matter . | . . . . . . . . . . Parts Self-Destructed 24 | . . . . . . . 24 . . Prevented 6 | . . . . . . . 6 . . Kills | -11 -10 -9 -8 -7 -6 -5 -5 -5 -4 ------- Run | Scr Mat Mat Mat Fac Fac Fac Upp Upp Fac Combat Hostiles Destroyed 62 | . 5 8 6 9 3 3 12 . 16 Guns 32 | . 5 7 1 2 . 1 8 . 8 Cannons 21 | . . . 4 7 . 2 4 . 4 AOE 6 | . . . 1 . 2 . . . 3 Classes Destroyed 14 | 1 1 1 2 2 1 . 5 . 1 Worker 1 | . . . . . . . . . 1 Builder 2 | . . . . . 1 . . . 1 Hauler 1 | . . . 1 . . . . . . Recycler 4 | 1 . . . . . 1 . . 2 Minesweeper 2 | . . . . . . . 2 . . Watcher 5 | . . . 3 1 . . . . 1 Swarmer 8 | . . . . 3 . . . . 5 Grunt 31 | . 5 3 4 4 3 2 6 . 4 Duelist 1 | . . . . . . . 1 . . Sentry 12 | . . 5 2 1 . 1 2 . 1 Hunter 2 | . . . . . . . . . 2 Programmer 7 | . . . . 1 . . 2 . 4 Decomposer 1 | . . . . . . . 1 . . Samaritan 1 | . . . . . . . 1 . . Mutant 1 | . . . . . . . 1 . . Best Kill Streak 5 | 1 1 3 2 4 3 4 3 . 5 Combat Bots Only 5 | . 1 3 2 4 2 3 3 . 5 Max Kills in Single Turn 2 | 1 1 1 1 1 2 1 1 . 2 Gunslinging . | . . . . . . . . . . Exploded 2 | . . . 1 . 1 . . . 2 Melee . | . . . . . . . . . . Uniques/NPCs Destroyed . | . . . . . . . . . . Combat | -11 -10 -9 -8 -7 -6 -5 -5 -5 -4 -------- Run | Scr Mat Mat Mat Fac Fac Fac Upp Upp Fac Damage Taken 11892 | . 442 607 539 594 309 721 3106 565 5009 Core 2373 | . 83 72 61 61 . 78 633 225 1160 Absorbed by Shields . | . . . . . . . . . . Core Remaining (%) 76 | 100 66 82 88 91 100 . . 6 . Volleys Fired 339 | 1 32 33 36 47 9 26 64 1 90 Largest 3 | 2 2 2 2 2 1 2 2 1 3 Hottest 208 | 40 40 112 100 99 45 110 133 39 208 Shots Fired 569 | 2 64 58 66 86 9 45 106 1 132 Gun 371 | 2 64 58 30 39 9 19 62 . 88 Cannon 197 | . . . 36 47 . 26 44 . 44 Launcher 1 | . . . . . . . . 1 . Special . | . . . . . . . . . . Kinetic 295 | 2 64 22 36 47 . 16 47 . 61 Thermal 199 | . . 36 19 . . 26 59 . 59 Explosive . | . . . . . . . . . . Electromagnetic 75 | . . . 11 39 9 3 . 1 12 Robot Hit Streak 26 | 1 15 26 14 12 5 11 14 15 24 Robot Miss Streak 8 | . 3 4 5 8 2 4 4 . 4 Penetration Max 1 | . . . . . . . . . 1 Secondary Targets 1 | . . . . . . . . . 1 Max Gunslinging Chain 1 | . . . . . . . . . 1 Shots Hit Robots 436 | 1 47 45 53 66 9 39 80 7 89 Core Hits 216 | 1 15 17 32 39 8 23 35 3 43 Critical Hits 16 | . . . . . . . 11 . 5 Critical Kills 10 | . . . . . . . 7 . 3 Critical Parts Destroyed 5 | . . . . . . . 4 . 1 Melee Attacks 51 | . . . . 21 3 1 11 8 7 Impact 47 | . . . . 21 3 1 11 4 7 Slashing 4 | . . . . . . . . 4 . Piercing . | . . . . . . . . . . Sneak Attacks 4 | . . . . . . . 1 1 2 Combat Hostiles 1 | . . . . . . . . 1 . Follow-up Attacks 1 | . . . . . . . . 1 . Damage Inflicted 8880 | 15 403 620 906 695 582 950 1613 311 2785 Guns 3990 | 15 403 608 373 323 148 353 562 . 1205 Cannons 3211 | . . . 451 372 . 567 893 . 928 Explosions 904 | . . . 82 . 434 . . 116 272 Melee 701 | . . . . . . 30 158 195 318 Ramming 74 | . . 12 . . . . . . 62 Kinetic 2944 | 15 403 197 451 372 . 297 297 . 912 Thermal 4144 | . . 411 232 . 434 567 1158 . 1342 Explosive . | . . . . . . . . . . Electromagnetic 1017 | . . . 223 323 148 56 . 116 151 Impact 649 | . . . . . . 30 158 143 318 Slashing 52 | . . . . . . . . 52 . Piercing . | . . . . . . . . . . Highest Corruption 11 | . . . . 1 . . 3 3 11 Average Corruption 2 | . . . . 1 . . 2 3 5 Corruption Purged . | . . . . . . . . . . Effects 38 | . . . . 4 . . 13 . 21 Message Errors 12 | . . . . 1 . . 4 . 7 Matter Fused 9 | . . . . . . . 3 . 6 Heat Flow Errors 1 | . . . . . . . 1 . . Energy Discharges 3 | . . . . . . . 2 . 1 Parts Rejected 1 | . . . . . . . . . 1 Data Loss (minor) 6 | . . . . 3 . . 1 . 2 Targeting Errors 6 | . . . . . . . 2 . 4 Overload Shots . | . . . . . . . . . . Overflow Damage 431 | . . . 5 . 115 . 164 . 147 Projectiles 101 | . . . 5 . . . 79 . 17 Explosions 145 | . . . . . 115 . . . 30 Melee 185 | . . . . . . . 85 . 100 Knockbacks 20 | . . . 15 4 . . . . 1 Impact 1 | . . . . . . . . . 1 Kinetic 19 | . . . 15 4 . . . . . Secondary . | . . . . . . . . . . Self-Inflicted Damage 233 | . . . 50 . 147 . . 15 21 Shots 4 | . . . 1 . 2 . . 1 . Rammed 18 | . . 2 . . . . . . 16 Targets Rammed 25 | . . 2 . . . . . . 23 Kicked 7 | . . . . . . . . . 7 Crushed . | . . . . . . . . . . Highest Temperature 613 | . 18 162 279 111 7 402 145 . 613 Average Temperature 89 | . 8 49 81 31 7 198 49 . 176 Received Heat Transfer 2487 | . 252 258 270 114 39 180 729 234 411 Effects 15 | . . . . . . . . . 15 Shutdowns 4 | . . . . . . . . . 4 Energy Bleed 1 | . . . . . . . . . 1 Interference 8 | . . . . . . . . . 8 Short Circuit 1 | . . . . . . . . . 1 Damage (minor) 1 | . . . . . . . . . 1 Siege Activations . | . . . . . . . . . . Robots Corrupted 1 | . . . . . 1 . . . . Combat Hostiles 1 | . . . . . 1 . . . . Parts Fried 7 | . . . 1 . 1 . . . 5 Impact Corruptions 9 | . . . . . . . 5 . 4 Robots Melted 1 | . . 1 . . . . . . . Combat Hostiles 1 | . . 1 . . . . . . . Parts Melted 10 | . . 6 . . . 1 . . 3 Heat Transferred 6068 | . . 1049 449 . 300 777 1758 . 1735 Parts Sabotaged . | . . . . . . . . . . Parts Stolen . | . . . . . . . . . . Parts Stripped . | . . . . . . . . . . Power Chain Reactions 5 | . . . 1 . 2 . . . 2 Missiles Intercepted . | . . . . . . . . . . Alert | -11 -10 -9 -8 -7 -6 -5 -5 -5 -4 ------- Run | Scr Mat Mat Mat Fac Fac Fac Upp Upp Fac Peak Influence 415 | 5 163 273 401 415 212 186 . . 223 Initial 115 | . 3 68 115 86 60 100 . . 28 Average 106 | 5 75 152 257 108 154 111 . . 45 Maximum Alert Level 2 | . . 1 2 2 1 . . . 1 Low Security (%) 84 | 100 100 74 30 91 43 100 . . 98 Level 1 12 | . . 25 61 3 56 . . . 1 Level 2 2 | . . . 7 5 . . . . . Level 3 . | . . . . . . . . . . Level 4 . | . . . . . . . . . . Level 5 . | . . . . . . . . . . High Security . | . . . . . . . . . . Max Security . | . . . . . . . . . . Squads Dispatched 15 | . 1 2 2 3 . 2 . . 5 Investigation 1 | . . 1 . . . . . . . Extermination 4 | . . . . 1 . . . . 3 Reinforcement 8 | . 1 1 2 2 . . . . 2 Assault . | . . . . . . . . . . Garrison 2 | . . . . . . 2 . . . Intercept . | . . . . . . . . . . Construction Impeded 3 | . . . 1 . . . . . 2 Haulers Reinforced . | . . . . . . . . . . Stealth | -11 -10 -9 -8 -7 -6 -5 -5 -5 -4 --------- Run | Scr Mat Mat Mat Fac Fac Fac Upp Upp Fac Distress Signals 5 | . 2 2 . . . . . . 1 Communications Jammed . | . . . . . . . . . . Distress Signals . | . . . . . . . . . . Times Spotted 131 | . 8 13 16 24 5 7 25 4 29 Peak Tracking Total 7 | . 4 5 5 6 3 3 6 4 7 Tactical Retreats 16 | . 1 2 . 1 1 1 7 1 2 Traps | -11 -10 -9 -8 -7 -6 -5 -5 -5 -4 ------- Run | Scr Mat Mat Mat Fac Fac Fac Upp Upp Fac Traps Triggered 2 | . . . . . 1 . . . 1 Indirectly . | . . . . . . . . . . Trap Hack Attempts . | . . . . . . . . . . Triggered . | . . . . . . . . . . Disarmed . | . . . . . . . . . . Reprogrammed . | . . . . . . . . . . Reused 4 | . . . . . . . 4 . . Traps Extracted . | . . . . . . . . . . Installed 12 | . . . . . . . 12 . . Triggered 6 | . . . . . . . 6 . . Machines | -11 -10 -9 -8 -7 -6 -5 -5 -5 -4 ---------- Run | Scr Mat Mat Mat Fac Fac Fac Upp Upp Fac Machines Disabled 9 | . . . . 7 2 . . . . Max in Single Turn 4 | . . . . 4 2 . . . . Garrison Access 1 | . . . . 1 . . . . . Machines Sabotaged . | . . . . . . . . . . Garrisons Compromised . | . . . . . . . . . . Overloaded Fab Kills . | . . . . . . . . . . Fab Network Shutdowns 1 | . . . . 1 . . . . . Hacking | -11 -10 -9 -8 -7 -6 -5 -5 -5 -4 --------- Run | Scr Mat Mat Mat Fac Fac Fac Upp Upp Fac Machines Accessed 15 | . 1 1 2 8 1 1 1 . . Terminals 10 | . 1 1 2 4 1 1 . . . Fabricators 1 | . . . . 1 . . . . . Repair Stations 1 | . . . . 1 . . . . . Recycling Units . | . . . . . . . . . . Scanalyzers 1 | . . . . 1 . . . . . Garrison Access 1 | . . . . 1 . . . . . Total Hacks 48 | . 3 4 9 28 2 1 1 . . Successful 28 | . 1 3 5 18 . . 1 . . Failed 19 | . 2 1 3 10 2 1 . . . Catastrophic 5 | . . 1 1 2 . 1 . . . Database Lockouts 1 | . . . 1 . . . . . . Manual 30 | . 3 4 7 13 2 1 . . . Terminals 35 | . 3 4 9 16 2 1 . . . Fabricators 3 | . . . . 3 . . . . . Repair Stations 3 | . . . . 3 . . . . . Recycling Units . | . . . . . . . . . . Scanalyzers 4 | . . . . 4 . . . . . Garrison Access 2 | . . . . 2 . . . . . Terminal Hacks 8 | . . 1 2 4 . . 1 . . Part Schematic 1 | . . . 1 . . . . . . Open Door 1 | . . . . . . . 1 . . Unreport Threat 3 | . . . . 3 . . . . . Zone Layout 3 | . . 1 1 1 . . . . . Fabricator Hacks 2 | . . . . 2 . . . . . Load Schematic 1 | . . . . 1 . . . . . Build 1 | . . . . 1 . . . . . Repair Station Hacks 1 | . . . . 1 . . . . . Scan Component 1 | . . . . 1 . . . . . Recycling Unit Hacks . | . . . . . . . . . . Scanalyzer 4 | . . . . 4 . . . . . Insert Component 2 | . . . . 2 . . . . . Analyze 2 | . . . . 2 . . . . . Garrison Access Hacks 1 | . . . . 1 . . . . . Seal Access 1 | . . . . 1 . . . . . Unauthorized Hacks 12 | . 1 2 3 6 . . . . . Terminals 12 | . 1 2 3 6 . . . . . Track 3 | . . 1 1 1 . . . . . Assimilate 1 | . . . . 1 . . . . . Botnet 8 | . 1 1 2 4 . . . . . Fabricators . | . . . . . . . . . . Repair Stations . | . . . . . . . . . . Recycling Units . | . . . . . . . . . . Scanalyzers . | . . . . . . . . . . Garrison Access . | . . . . . . . . . . Data Cores Recovered . | . . . . . . . . . . Used . | . . . . . . . . . . Hacking Detections 14 | . 1 1 2 8 1 1 . . . Full Trace Events 1 | . . 1 . . . . . . . Feedback Events . | . . . . . . . . . . Feedback Blocked . | . . . . . . . . . . Robot Schematics Acquired . | . . . . . . . . . . Robots Built . | . . . . . . . . . . Matter . | . . . . . . . . . . Time . | . . . . . . . . . . Total Robot Build Rating . | . . . . . . . . . . Part Schematics Acquired 3 | . . . 1 2 . . . . . Parts Built 1 | . . . . 1 . . . . . Matter 186 | . . . . 186 . . . . . Time 49 | . . . . 49 . . . . . Total Part Build Rating 2 | . . . . 2 . . . . . Parts Repaired . | . . . . . . . . . . Time . | . . . . . . . . . . Parts Recycled . | . . . . . . . . . . Recycled Matter . | . . . . . . . . . . Retrieved Matter . | . . . . . . . . . . Retrieved Components . | . . . . . . . . . . Parts Scanalyzed 2 | . . . . 2 . . . . . Part Schematics Acquired 2 | . . . . 2 . . . . . Parts Damaged . | . . . . . . . . . . Bothacking | -11 -10 -9 -8 -7 -6 -5 -5 -5 -4 ------------ Run | Scr Mat Mat Mat Fac Fac Fac Upp Upp Fac Used RIF Installer . | . . . . . . . . . . Robots Hacked . | . . . . . . . . . . Non-combat . | . . . . . . . . . . Combat . | . . . . . . . . . . Robot Hacks Applied . | . . . . . . . . . . Relay Couplers Released . | . . . . . . . . . . Robots Rewired 1 | . . . . 1 . . . . . Allies Hacked 1 | . . . . 1 . . . . . Hacks Repelled . | . . . . . . . . . . Allies | -11 -10 -9 -8 -7 -6 -5 -5 -5 -4 -------- Run | Scr Mat Mat Mat Fac Fac Fac Upp Upp Fac Total Allies 2 | . . . . 2 . . . . . Largest Group 1 | . . . . 1 . . . . . Highest-Rated Group 16 | . . . . 16 . . . . . Highest-Rated Ally 16 | . . . . 16 . . . . . Total Orders . | . . . . . . . . . . Ally Attacks 4 | . . . . 4 . . . . . Total Damage 65 | . . . . 65 . . . . . Kills . | . . . . . . . . . . Allies Corrupted . | . . . . . . . . . . Allies Melted . | . . . . . . . . . . Intel | -11 -10 -9 -8 -7 -6 -5 -5 -5 -4 ------- Run | Scr Mat Mat Mat Fac Fac Fac Upp Upp Fac Robot Analysis Total . | . . . . . . . . . . Derelict Logs Recovered 3 | . . . . . . . 3 . . Drone Launches . | . . . . . . . . . . Drone Recoveries . | . . . . . . . . . . Exploration | -11 -10 -9 -8 -7 -6 -5 -5 -5 -4 ------------- Run | Scr Mat Mat Mat Fac Fac Fac Upp Upp Fac Turns Passed 6789 | 22 282 309 404 1456 313 366 2199 43 1395 Spaces Moved 4013 | 14 135 149 180 780 207 217 1385 21 925 Core 248 | . . . . 1 . . 67 21 159 Treads 111 | . . 36 66 . . . 9 . . Legs 2737 | 14 62 . 114 779 207 214 1309 . 38 Wheels 301 | . 73 113 . . . . . . 115 Hover 616 | . . . . . . 3 . . 613 Flight . | . . . . . . . . . . Fastest Speed 50 | 120 100 100 150 120 120 120 120 100 50 Average Speed 126 | 120 117 114 153 146 127 122 135 100 96 Slowest Speed 600 | 120 150 160 160 600 150 330 350 100 250 Overloaded Moves . | . . . . . . . . . . Propulsion Burnouts . | . . . . . . . . . . Robots Hopped . | . . . . . . . . . . Cave-ins Triggered . | . . . . . . . . . . Exploration Rate (%) 20 | 2 32 12 21 20 5 7 96 5 9 Regions Visited 9 Branch Regions 2 Pre-discovered Areas 1 | . . . . . . . 1 . . Known Exits Taken 1 | . . . . . . . 1 . . Unknown Exits Taken 8 | 1 1 1 1 1 1 1 . 1 . Scrap Searched 2 | . . . . . . . 2 . . Spaces Dug 23 | . . . . 17 3 . 1 . 2 Terrain Destroyed 135 | . . . 3 43 52 2 8 . 27 Melee 21 | . . . . 17 3 . 1 . . Projectile 33 | . . . . . . 2 7 . 24 AOE 81 | . . . 3 26 49 . . . 3 Terrain Rammed . | . . . . . . . . . . Walls Destroyed . | . . . . . . . . . . Machines Disabled . | . . . . . . . . . . Actions | -11 -10 -9 -8 -7 -6 -5 -5 -5 -4 --------- Run | Scr Mat Mat Mat Fac Fac Fac Upp Upp Fac Total 5128 | 18 202 232 242 976 242 275 1590 32 1319 Wait 316 | . 19 31 6 75 4 . 64 2 115 Move 4004 | 13 134 148 179 779 206 216 1384 20 925 Hop . | . . . . . . . . . . Pick Up 167 | 2 10 6 11 20 10 13 26 . 69 Fast Attach . | . . . . . . . . . . Attach 121 | 1 2 7 6 11 8 8 19 1 58 Detach 9 | . . . . 1 . 2 . . 6 Swap 11 | . 1 2 2 2 1 1 1 1 . Drop 63 | 1 4 3 2 11 1 8 7 . 26 Fire 339 | 1 32 33 36 47 9 26 64 1 90 Melee 50 | . . . . 21 3 1 11 7 7 Ram 4 | . . . . . . . . . 4 Kick 19 | . . . . . . . . . 19 Crush 2 | . . 2 . . . . . . . Escape Stasis . | . . . . . . . . . . Rewire 11 | . . . . 9 . . 2 . . Trap 12 | . . . . . . . 12 . . Miscellaneous . | . . . . . . . . . . Route ------- -11/Scrapyard -10/Materials -9/Materials (discovered 2 exits: *Mat / [*Sto]) -8/Materials -7/Factory -6/Factory -5/Factory -5/Upper Caves -5/Upper Caves -4/Factory (discovered 1 exit: Arm) History --------- Turn | Location | Event 4 | -11/Scrapyard | Discovered new exit (range 3) 23 | -11/Scrapyard | Entered Materials 218 | -10/Materials | Discovered new exit (range 16) 305 | -10/Materials | Entered another Materials area 305 | -9/Materials | Evolved 2 slots: Propulsion x1, Utility x1 323 | -9/Materials | Discovered new exit (range 11) 330 | -9/Materials | Build established: Mutant 423 | -9/Materials | Discovered new exit (range 15) 550 | -9/Materials | Lost 4 parts (1p2n1w) 610 | -9/Materials | Lost 3 parts (1n2w) 614 | -9/Materials | Entered another Materials area 614 | -8/Materials | Evolved 2 slots: Propulsion x1, Utility x1 710 | -8/Materials | Central database locked down 983 | -8/Materials | Discovered new exit (range 16) 1018 | -8/Materials | Entered Factory 1018 | -7/Factory | Evolved 2 slots: Utility x1, Weapon x1 1230 | -7/Factory | Lost 5 parts (3n1u1w) 1750 | -7/Factory | Fabricated Imp. EM Shotgun (x1) 1928 | -7/Factory | Local fabrication network quarantined 2463 | -7/Factory | Discovered new exit (range 5) 2474 | -7/Factory | Entered another Factory area 2474 | -6/Factory | Evolved 2 slots: Power x1, Utility x1 2623 | -6/Factory | Lost 5 parts (1n2u2w) 2774 | -6/Factory | Discovered new exit (range 5) 2787 | -6/Factory | Entered another Factory area 2787 | -5/Factory | Evolved 2 slots: Propulsion x2 2866 | -5/Factory | Build established: Scavenger-Mutant 3018 | -5/Factory | Discovered new exit (range 16) 3040 | -5/Factory | Garrison activated, responded to threat 3116 | -5/Factory | Lost 5 parts (1p2n1u1w) 3153 | -5/Factory | Entered Upper Caves 3303 | -5/Upper Caves | Lost 7 parts (1p2n1u3w) 3439 | -5/Upper Caves | Attracted the attention of an 0b10 checkpoint 3698 | -5/Upper Caves | Identified exit to Upper Caves 4805 | -5/Upper Caves | Lost 5 parts (3n1u1w) 5020 | -5/Upper Caves | Attacked by a delusional Derelict stockpiling parts 5045 | -5/Upper Caves | Build established: Mutant 5065 | -5/Upper Caves | Core integrity fell below 50% 5122 | -5/Upper Caves | Lost 7 parts (2n2u3w) 5352 | -5/Upper Caves | Entered another Upper Caves area 5365 | -5/Upper Caves | Core integrity fell below 20% 5390 | -5/Upper Caves | Discovered new exit (range 5) 5395 | -5/Upper Caves | Entered Factory 5395 | -4/Factory | Evolved 2 slots: Utility x2 5396 | -4/Factory | Identified exit to Armory 5407 | -4/Factory | Lost 6 parts (3u3w) 6185 | -4/Factory | Lost 3 parts (2u1w) 6290 | -4/Factory | Lost 6 parts (2n1u3w) 6396 | -4/Factory | Lost 8 parts (2p2n1u3w) 6549 | -4/Factory | Core integrity fell below 50% 6600 | -4/Factory | Build established: Scavenger-Mutant 6610 | -4/Factory | Lost 8 parts (1p3n4w) 6709 | -4/Factory | Spotted B-86 Titan 6761 | -4/Factory | Core integrity fell below 20% 6773 | -4/Factory | System corruption reached 10% 6790 | -4/Factory | Destroyed by S-27 Virus with Autogun Last Messages --------------- 06775_ Slammed into S-27 Virus. 06776_ Kicked S-27 Virus out of the way. 06777_ Flexi-carbon Leg destroyed. 06777_ Kicked S-27 Virus out of the way. 06777_ Mic. Fission Core destroyed. 06778_ Slammed into S-27 Virus. 06778_ Imp. Target Analyzer permanently disabled. 06778_ Destabilizing: Short circuit. 06779_ Slammed into S-27 Virus. 06781_ Kicked S-27 Virus out of the way. 06782_ Slammed into S-27 Virus. 06782_ Destabilizing: Core damaged (-46). 06784_ Kicked S-27 Virus out of the way. 06785_ Slammed into S-27 Virus. 06788_ Destabilizing: Core damaged (-11). 06788_ Flexi-carbon Leg destroyed. 06789_ Slammed into S-27 Virus. 06789_ Imp. Target Analyzer permanently disabled. 06789_ Destabilizing: Short circuit. 06790_ Slammed into S-27 Virus. Map ----- +----------------------------------------------------+ | ###/#### #???????# #???????????????? | | ## #???????# #???????????????? | | ## #???????# #???????????????? | | # #???????# #???????????????? | | # #???????# #???????????????? | | %[ # #???????# #???????????????? | | # #???????# #???????????????? | | # #???????# #???????????????? | | # ######### #???????????????? | | # # #???????????????? | | ?# # +???????????????? | | ???# """ ## #???????????????? | | ?????# """ ## #???????????????? | | ?????# ## % #???????????????? | | ?????####################### #???????????????? | | ?????????????# # #???????????????? | | ?????????????? """ ! # #???????????????? | | ?????????????# "R + #???????????????? | | ?????????????? """ """ # #???????????????? | | ?????????????# """ """ # #???????????????? | | ?????????????# """ # #???????????????? | | ?????????????# # #???????????????? | | ?????????????# """"" """"" # ##########+#????? | | ?????????????# """"" """""%# ??? | | ?????????????# """ """ss%# ??? | | ?????????????# %%%@%s% ??? | | ?????????????############### ??? | | ???????????????????????????# ??? | | ???????????????????????????##### ############????? | | ???????????????????????????????? #???????????????? | | ???????????????????????????????? #???????????????? | | ???????????????????????????????? #???????????????? | | ?????????????????????????????????#???????????????? | | ?????????????????????????????????????????????????? | | ?????????????????????????????????????????????????? | | ?????????????????????????????????????????????????? | | ?????????????????????????????????????????????????? | | ?????????????????????????????????????????????????? | | ?????????????????????????????????????????????????? | | ?????????????????????????????????????????????????? | | ?????????????????????????????????????????????????? | | ?????????????????????????????????????????????????? | | ?????????????????????????????????????????????????? | | ?????????????????????????????????????????????????? | | ?????????????????????????????????????????????????? | | ?????????????????????????????????????????????????? | | ?????????????????????????????????????????????????? | | ?????????????????????????????????????????????????? | | ?????????????????????????????????????????????????? | | ?????????????????????????????????????????????????? | +----------------------------------------------------+ Best States ------------- Heat Dissipation 81 Energy Generation 34 Energy Capacity 850 Matter Stores 300 Matter Capacity 300 Sight Range 20 Robot Scan Range 16 Terrain Scan Range 16 Terrain Scan Density 10 Base Temperature (-) 150 Armor Coverage 450 Resistance: TH 30 Power Shielding 33 Phase Shifting 5 Evasion (%) 54 Targeting Accuracy 6 Target Analysis 6 Armor Integrity Analysis 66 Recoil Reduction 6 Salvage Targeting 2 Offensive Hacking 10 Item Schematics ----------------- Imp. Terrain Scanner | -8/Materials | Hacked Imp. Targeting Computer | -7/Factory | Scanalyzed Imp. EM Shotgun | -7/Factory | Scanalyzed Robot Schematics ------------------ None Fabricated ------------ Imp. EM Shotgun | x1 | -7/Factory Alien Tech Used ----------------- None Achievements -------------- None Challenges ------------ None Game ------ Seed ReinforcedBehemothStripper Manual? 0 Play Time 01:03:22 Cumulative 88.4 hours Start 2021.06.22 @ 16:10:35 End 2021.06.22 @ 17:13:22 Sessions 1 Manual Loads 0 Difficulty Rogue Special Mode None Game No. 184 Rogue 184 Adventurer 0 Explorer 0 Win Type - Total 0 Types 0/0/0/0/0/0/0/0/0 Lore% 33 Gallery% 56 Achievement% 34 Wizard Run 0 Options --------- ASCII 0 Keyboard 1 Movement Numpad Keybinds 0 Fullscreen 1 Font 18/SmallcapsGlow Map View 76x50 Tactical HUD 1 Map Filters NONE Filters NONE Steam 1 RUN: 7f0b8c75-d761-402b-859c-b279d59f5433